bitfinex-derivatives/quotes_SOLF0:USTF0_20241024
["timestamp","ask_amount","ask_price","bid_price","bid_amount"]
[1729787984209,7.82652873,176.58,176.54,7.4742]
[1729787984408,2.8338,176.57,176.54,7.4742]
[1729787984612,7.82652873,176.57,176.54,4.64]
[1729787985220,10.66032873,176.57,176.53,2.8344]
[1729787986719,10.66032873,176.57,176.54,2.8342]
[1729787987812,10.66012873,176.58,176.55,2.8341]
[1729787988624,7.82652873,176.58,176.53,7.82652873]
[1729787988828,7.82652873,176.58,176.56,2.8339]
[1729787989534,5.2468,176.61,176.57,2.8337]
[1729787989726,7.82652873,176.59,176.53,7.82652873]
[1729787990127,10.65992873,176.59,176.56,2.8338]
[1729787990430,7.82652873,176.59,176.53,7.82652873]
[1729787990831,7.82652873,176.59,176.57,2.8337]
[1729787991526,10.66012873,176.58,176.55,2.834]
[1729787991830,7.82652873,176.58,176.52,12.46652873]
[1729787992931,7.82652873,176.58,176.55,2.834]
[1729787993227,7.82652873,176.58,176.52,4.64]
[1729787993433,10.66012873,176.58,176.52,4.64]
[1729787993634,10.66012873,176.58,176.54,2.8341]
[1729787994025,10.66012873,176.58,176.52,4.64]
[1729787994933,10.66012873,176.58,176.55,2.834]
[1729787995627,2.8338,176.57,176.54,2.8343]
[1729787997737,7.82652873,176.56,176.54,2.8343]
[1729788001134,7.82652873,176.55,176.52,4.64]
[1729788001537,2.4136,176.61,176.47,1.1606]
[1729788001538,7.82652873,176.54,176.47,2.5776205]
[1729788001730,7.82652873,176.54,176.49,4.64]
[1729788002136,7.82652873,176.52,176.48,4.64]
[1729788002537,7.82652873,176.52,176.5,2.8348]
[1729788003835,10.66132873,176.51,176.48,7.4751]
[1729788004638,7.41326654,176.56,176.51,2.8347]
[1729788004639,2.8343,176.54,176.51,2.8347]
[1729788004843,7.82652873,176.52,176.48,4.64]
[1729788005839,7.82652873,176.5,176.43,1.41736326]
[1729788006037,7.82652873,176.5,176.44,12.46652873]
[1729788006640,7.82652873,176.5,176.44,4.64]
[1729788006845,7.82652873,176.5,176.44,12.46652873]
[1729788008041,7.82652873,176.5,176.48,2.8352]
[1729788009645,2.8349,176.51,176.48,2.8352]
[1729788009945,10.66142873,176.51,176.48,2.8352]
[1729788011035,2.8343,176.55,176.48,4.64]
[1729788011241,7.82652873,176.53,176.48,4.64]
[1729788011547,10.66082873,176.54,176.51,2.8347]
[1729788011746,7.82652873,176.54,176.48,12.46652873]
[1729788012243,7.82652873,176.56,176.5,7.82652873]
[1729788012444,5.8116,176.6,176.52,7.82652873]
[1729788012445,1.1716,176.6,176.52,7.82652873]
[1729788012646,5.664,176.69,176.56,2.8339]
[1729788012647,2.8335,176.59,176.56,2.8339]
[1729788012846,7.82652873,176.58,176.56,2.8339]
[1729788013050,7.82652873,176.58,176.53,4.64]
[1729788013247,7.82652873,176.58,176.52,7.82652873]
[1729788013248,10.66022873,176.58,176.55,2.834]
[1729788013445,7.82652873,176.56,176.5,4.64]
[1729788013650,7.82652873,176.56,176.53,2.8344]
[1729788013651,10.66052873,176.56,176.53,2.8344]
[1729788013844,10.66052873,176.56,176.5,4.64]
[1729788013845,7.82652873,176.56,176.51,7.82652873]
[1729788014147,4.64,176.6,176.51,7.82652873]
[1729788014345,10.66042873,176.57,176.53,2.8343]
[1729788014751,2.834,176.56,176.53,2.8343]
[1729788015646,10.66052873,176.56,176.53,2.8343]
[1729788016056,4.64,176.6,176.48,4.64]
[1729788016057,7.82652873,176.54,176.48,4.64]
[1729788016245,4.64,176.6,176.48,4.64]
[1729788016246,7.82652873,176.52,176.48,4.64]
[1729788017052,7.82652873,176.52,176.51,2.8347]
[1729788018051,2.8344,176.54,176.51,2.8347]
[1729788018260,10.66092873,176.54,176.51,2.8347]
[1729788018855,2.8344,176.54,176.51,2.8347]
[1729788019062,1.244,176.59,176.48,12.46652873]
[1729788019063,10.66052873,176.56,176.53,2.8343]
[1729788019255,7.82652873,176.54,176.48,12.46652873]
[1729788020454,7.82652873,176.54,176.51,2.8347]
[1729788021359,10.66092873,176.54,176.51,2.8347]
[1729788021855,7.82652873,176.52,176.51,2.8347]
[1729788022953,7.82652873,176.52,176.42,61.16]
[1729788023163,7.82652873,176.47,176.45,2.8356]
[1729788024460,7.82652873,176.47,176.44,2.8359]
[1729788026359,10.66192873,176.47,176.44,2.8359]
[1729788028563,2.8353,176.48,176.45,2.8357]
[1729788028756,10.66182873,176.48,176.45,2.8357]
[1729788028958,7.82652873,176.48,176.42,4.64]
[1729788029767,2.8354,176.47,176.44,2.8358]
[1729788032163,2.8354,176.47,176.4,162.52359545]
[1729788032164,7.82652873,176.46,176.4,162.52359545]
[1729788032469,7.82652873,176.45,176.4,167.14359545]
[1729788032773,1.1771,176.52,176.41,2.8363]
[1729788032774,7.82652873,176.43,176.41,2.8363]
[1729788032970,7.82652873,176.43,176.4,162.52359545]
[1729788033661,2.8362,176.43,176.4,165.35999545]
[1729788033863,7.82652873,176.44,176.4,165.35999545]
[1729788034265,1.2598,176.48,176.4,162.52359545]
[1729788034464,5.7971,176.52,176.4,170.35012418]
[1729788034662,7.82652873,176.47,176.4,170.35012418]
[1729788035170,7.82652873,176.48,176.42,7.82652873]
[1729788035474,4.62,176.54,176.43,4.62]
[1729788035770,7.82652873,176.48,176.42,7.82652873]
[1729788035972,7.82652873,176.48,176.43,4.62]
[1729788036469,7.82652873,176.48,176.44,2.8358]
[1729788036665,7.82652873,176.48,176.43,4.62]
[1729788037172,7.82652873,176.48,176.44,2.8358]
[1729788037373,7.82652873,176.5,176.43,12.44652873]
[1729788038272,7.82652873,176.5,176.48,2.8352]
[1729788038572,7.82652873,176.5,176.43,12.44652873]
[1729788038960,7.82652873,176.5,176.45,7.82652873]
[1729788040477,10.66142873,176.5,176.47,2.8353]
[1729788042369,6.9762,176.55,176.48,2.8352]
[1729788042876,7.82652873,176.5,176.48,2.8352]
[1729788044163,7.82652873,176.5,176.45,4.62]
[1729788044164,1.204,176.55,176.49,2.8349]
[1729788044368,7.82652873,176.52,176.49,2.8349]
[1729788045275,2.8348,176.51,176.49,2.8349]
[1729788045671,2.8348,176.51,176.46,9.24414936]
[1729788045878,10.66132873,176.51,176.48,2.8352]
[1729788046272,7.82652873,176.5,176.48,2.8352]
[1729788048080,7.82652873,176.5,176.45,4.62]
[1729788048274,7.82652873,176.5,176.48,2.8351]
[1729788048777,10.66132873,176.51,176.48,2.8351]
[1729788052479,1.204,176.55,176.49,13.86407241]
[1729788052784,1.204,176.55,176.5,1.41754368]
[1729788052976,9.03122873,176.56,176.5,1.41754368]
[1729788053184,9.03122873,176.56,176.5,6.03754368]
[1729788053377,9.03122873,176.56,176.5,4.62]
[1729788053575,2.8343,176.54,176.51,2.8346]
[1729788054080,9.03122873,176.56,176.51,2.8346]
[1729788054681,2.8343,176.54,176.51,2.8346]
[1729788055070,2.8343,176.54,176.5,4.62]
[1729788055273,2.8343,176.54,176.52,2.8345]
[1729788055683,9.03122873,176.56,176.52,2.8345]
[1729788055875,2.8341,176.55,176.52,2.8345]
[1729788056284,9.03122873,176.56,176.52,2.8345]
[1729788056887,9.03122873,176.56,176.5,4.62]
[1729788056888,2.8339,176.55,176.51,1.41739866]
[1729788057080,2.8339,176.55,176.5,4.62]
[1729788057282,2.8339,176.55,176.51,1.41738008]
[1729788057482,2.8339,176.55,176.52,2.8342]
[1729788057883,9.03122873,176.56,176.52,2.8342]
[1729788058085,2.834,176.54,176.52,2.8342]
[1729788058484,9.03122873,176.56,176.5,4.62]
[1729788058485,1.2047,176.56,176.53,2.8342]
[1729788058787,7.82652873,176.55,176.5,4.62]
[1729788058995,7.82652873,176.55,176.51,1.41740261]
[1729788059287,7.82652873,176.55,176.5,4.62]
[1729788059481,7.82652873,176.55,176.51,1.41740333]
[1729788059681,7.82652873,176.55,176.5,4.62]
[1729788059885,7.82652873,176.55,176.51,1.41739709]
[1729788060088,7.82652873,176.55,176.5,4.62]
[1729788060287,2.834,176.54,176.52,2.8343]
[1729788060485,7.82652873,176.53,176.46,4.62]
[1729788060694,7.82652873,176.49,176.47,1.41761722]
[1729788060894,10.66142873,176.49,176.48,1.41761722]
[1729788061885,2.8356,176.45,176.42,1.41776127]
[1729788062080,7.82652873,176.44,176.42,2.8359]
[1729788062387,7.82652873,176.44,176.41,4.62]
[1729788062588,7.82652873,176.44,176.43,2.8358]
[1729788062783,7.82652873,176.44,176.41,4.62]
[1729788063394,7.82652873,176.44,176.42,2.8359]
[1729788064282,7.82652873,176.44,176.39,162.5409445]
[1729788064490,7.82652873,176.43,176.4,2.8362]
[1729788066091,7.82652873,176.43,176.38,4.62]
[1729788066683,7.82652873,176.43,176.4,2.8361]
[1729788067394,10.66232873,176.43,176.4,2.8361]
[1729788068899,1.2178,176.51,176.38,12.44652873]
[1729788069087,7.82652873,176.48,176.43,7.82652873]
[1729788069287,1.2178,176.51,176.43,7.82652873]
[1729788069288,7.82652873,176.49,176.43,7.82652873]
[1729788069591,7.82652873,176.49,176.45,2.8354]
[1729788069592,10.66142873,176.49,176.45,2.8354]
[1729788069991,7.82652873,176.49,176.43,7.82652873]
[1729788070185,7.82652873,176.49,176.46,2.8352]
[1729788070498,13.46559565,176.51,176.42,4.62]
[1729788070693,2.8349,176.49,176.45,2.8353]
[1729788071291,12.24779565,176.51,176.42,4.62]
[1729788071491,2.8345,176.51,176.43,12.24779565]
[1729788071894,15.08189565,176.54,176.5,2.8345]
[1729788072097,12.24779565,176.56,176.47,4.62]
[1729788072300,12.24779565,176.54,176.47,4.62]
[1729788072997,12.24779565,176.54,176.43,1.2171]
[1729788073203,12.24779565,176.51,176.44,4.62]
[1729788073501,2.8348,176.5,176.46,2.8352]
[1729788073896,2.8348,176.5,176.47,1.41760551]
[1729788074099,2.8348,176.5,176.48,1.41760551]
[1729788074294,2.8348,176.5,176.46,2.8352]
[1729788074602,2.8348,176.5,176.47,1.41760636]
[1729788074802,2.8348,176.5,176.48,1.41760636]
[1729788075001,2.8348,176.5,176.46,2.8352]
[1729788075198,1.2416,176.53,176.47,1.4176076]
[1729788075391,12.24779565,176.56,176.48,1.4176076]
[1729788075595,12.24779565,176.56,176.49,1.4176076]
[1729788075901,12.24779565,176.56,176.45,12.24779565]
[1729788076099,2.8343,176.52,176.49,2.8347]
[1729788076298,2.8343,176.52,176.5,1.41752941]
[1729788076494,2.8343,176.52,176.49,2.8347]
[1729788077292,2.8343,176.52,176.5,1.4175214]
[1729788077497,2.8343,176.52,176.49,2.8347]
[1729788078105,2.8343,176.52,176.5,1.41752185]
[1729788078405,2.8343,176.52,176.49,2.8347]
[1729788079910,2.8343,176.52,176.5,1.41750511]
[1729788080101,2.8343,176.52,176.5,2.8347]
[1729788080706,12.24779565,176.54,176.44,4.62]
[1729788080908,12.24779565,176.54,176.45,1.4175239]
[1729788081205,2.8345,176.52,176.49,2.8347]
[1729788081504,2.8345,176.52,176.5,1.4175239]
[1729788081709,2.8345,176.52,176.49,2.8347]
[1729788081910,2.8342,176.53,176.5,4.25201788]
[1729788082202,2.8342,176.53,176.5,2.8345]
[1729788084114,2.8342,176.53,176.51,1.4174711]
[1729788084311,2.8342,176.53,176.5,2.8345]
[1729788084612,12.24779565,176.54,176.51,1.41747351]
[1729788084813,2.8342,176.53,176.5,2.8345]
[1729788085005,2.8342,176.53,176.51,1.41748019]
[1729788085205,2.8342,176.53,176.5,2.8345]
[1729788085405,2.8342,176.53,176.51,1.41748052]
[1729788085701,2.8342,176.53,176.5,2.8345]
[1729788085899,2.8342,176.53,176.51,1.41748052]
[1729788086106,2.8342,176.53,176.5,2.8345]
[1729788086307,2.8342,176.53,176.51,1.41747429]
[1729788086510,12.24779565,176.54,176.5,2.8345]
[1729788086709,2.8344,176.52,176.51,1.41747429]
[1729788090410,2.8344,176.52,176.5,2.8345]
[1729788090615,2.8344,176.52,176.51,1.41747418]
[1729788093714,2.8344,176.52,176.5,2.8345]
[1729788093915,2.8344,176.52,176.51,1.41747517]
[1729788095518,2.8344,176.52,176.5,2.8345]
[1729788097222,10.67839263,176.53,176.5,2.8345]
[1729788098524,7.84419263,176.53,176.47,7.84419263]
[1729788098723,1.2416,176.59,176.52,7.84419263]
[1729788098918,9.08579263,176.59,176.53,7.84419263]
[1729788099324,2.8335,176.58,176.55,2.8337]
[1729788101421,7.84419263,176.59,176.52,7.84419263]
[1729788101729,10.67779263,176.57,176.54,2.8339]
[1729788101929,7.84419263,176.55,176.39,2.90138921]
[1729788102229,2.8344,176.52,176.47,7.84419263]
[1729788102427,7.84419263,176.53,176.48,1.4173911]
[1729788102632,10.67849263,176.53,176.5,2.8346]
[1729788102928,10.67849263,176.53,176.51,1.4173911]
[1729788103132,10.67849263,176.53,176.52,1.4173911]
[1729788104729,10.67849263,176.53,176.5,2.8346]
[1729788105233,10.67849263,176.53,176.51,1.41742517]
[1729788105427,10.67849263,176.53,176.52,1.41742517]
[1729788108226,10.67849263,176.53,176.51,2.8345]
[1729788108427,2.8337,176.57,176.51,7.84419263]
[1729788108629,7.84419263,176.57,176.53,2.8341]
[1729788109136,1.1736,176.64,176.53,2.8341]
[1729788109137,2.8334,176.58,176.55,2.8338]
[1729788110137,2.8336,176.57,176.55,2.8338]
[1729788113939,7.84419263,176.59,176.55,2.8338]
[1729788114140,2.8335,176.58,176.55,2.8338]
[1729788114532,7.84419263,176.59,176.55,2.8338]
[1729788114730,2.8335,176.57,176.55,2.8338]
[1729788115334,4.6,176.62,176.49,4.6]
[1729788115335,2.8341,176.54,176.49,4.6]
[1729788115540,2.8341,176.54,176.5,1.41727541]
[1729788115745,7.84419263,176.55,176.51,1.41727541]
[1729788115939,10.67819263,176.55,176.52,4.25147541]
[1729788116134,10.67819263,176.55,176.53,1.41727541]
[1729788116339,10.67819263,176.55,176.52,2.8342]
[1729788116535,10.67819263,176.55,176.53,1.41729784]
[1729788116846,10.67819263,176.55,176.52,2.8342]
[1729788117148,7.84419263,176.55,176.53,1.41728751]
[1729788117340,2.834,176.54,176.52,2.8342]
[1729788117540,7.84419263,176.55,176.53,1.41729818]
[1729788117746,7.84419263,176.55,176.51,2.8345]
[1729788117942,2.8341,176.54,176.52,1.41736683]
[1729788118143,2.8341,176.54,176.51,2.8345]
[1729788118341,2.8341,176.54,176.52,1.41738682]
[1729788118544,2.8341,176.54,176.52,2.8343]
[1729788119140,2.8341,176.54,176.49,12.44419263]
[1729788119141,2.8341,176.54,176.53,1.41734191]
[1729788119340,2.8344,176.52,176.5,2.8346]
[1729788119642,2.8344,176.52,176.51,1.41739736]
[1729788123450,7.84419263,176.52,176.49,2.8348]
[1729788123756,2.8345,176.51,176.5,1.41747468]
[1729788124046,7.84419263,176.53,176.5,1.41747468]
[1729788124252,2.8344,176.52,176.5,2.8346]
[1729788125055,2.8344,176.52,176.51,1.41747373]
[1729788125242,2.8344,176.52,176.51,1.41747374]
[1729788125646,2.8344,176.52,176.5,2.8346]
[1729788125852,2.8344,176.52,176.51,1.41747374]
[1729788126152,2.8343,176.52,176.51,1.41747374]
[1729788130657,2.8347,176.5,176.48,2.8349]
[1729788130862,2.8347,176.5,176.49,1.41749737]
[1729788131547,10.67879263,176.51,176.49,1.41749737]
[1729788131761,10.67879263,176.51,176.5,1.41749737]
[1729788132150,2.835,176.48,176.46,2.8353]
[1729788132452,7.84419263,176.48,176.47,1.41769574]
[1729788132964,10.67919263,176.48,176.47,1.41769574]
[1729788136158,6.44954287,176.57,176.47,1.41769574]
[1729788136354,7.84419263,176.52,176.48,1.41769574]
[1729788136658,7.84419263,176.52,176.49,1.41769574]
[1729788136858,2.8345,176.51,176.5,1.41769574]
[1729788138250,4.6,176.56,176.5,1.41769574]
[1729788138456,1.223,176.57,176.51,1.41769574]
[1729788138654,2.834,176.55,176.52,4.25199574]
[1729788138852,2.834,176.55,176.53,1.41769574]
[1729788139052,5.6659,176.61,176.55,2.8337]
[1729788139053,4.6,176.61,176.55,2.8337]
[1729788139254,2.8334,176.58,176.55,2.8337]
[1729788139449,7.84419263,176.59,176.53,7.84419263]
[1729788139766,7.84419263,176.58,176.54,1.41722174]
[1729788139951,7.84419263,176.58,176.55,1.41722174]
[1729788140157,7.84419263,176.58,176.53,7.84419263]
[1729788140358,2.8336,176.57,176.53,10.67829263]
[1729788140558,2.8336,176.57,176.54,1.41723851]
[1729788140757,2.8336,176.57,176.55,1.41723851]
[1729788141057,2.8336,176.57,176.54,2.834]
[1729788141259,2.8336,176.57,176.55,1.41724996]
[1729788141464,7.84419263,176.58,176.52,7.84419263]
[1729788141770,7.84419263,176.58,176.53,4.25134996]
[1729788141962,7.84419263,176.58,176.54,1.41724996]
[1729788142154,7.84419263,176.58,176.55,1.41724996]
[1729788142359,7.84419263,176.58,176.54,2.834]
[1729788142557,7.84419263,176.58,176.55,1.41726243]
[1729788142765,7.84419263,176.58,176.54,2.834]
[1729788142966,2.8337,176.57,176.55,1.41726209]
[1729788143165,2.8337,176.57,176.53,2.8341]
[1729788143467,7.84419263,176.58,176.54,1.41724962]
[1729788143656,2.8337,176.56,176.55,1.41724962]
[1729788144367,2.8342,176.53,176.5,2.8346]
[1729788144568,2.8342,176.53,176.51,1.41737804]
[1729788144762,2.8342,176.53,176.52,1.41737804]
[1729788147268,2.8342,176.53,176.52,1.41736115]
[1729788147669,2.8342,176.53,176.5,2.8346]
[1729788147868,2.8342,176.53,176.51,1.41735352]
[1729788148062,2.8342,176.53,176.52,1.41735352]
[1729788149973,7.84419263,176.54,176.52,1.41735352]
[1729788150176,2.8342,176.53,176.51,2.8344]
[1729788150376,2.8342,176.53,176.52,1.41736379]
[1729788153476,10.67839263,176.53,176.52,1.41736379]
[1729788153675,7.84419263,176.53,176.48,2.8349]
[1729788153976,10.67879263,176.51,176.49,1.41752423]
[1729788154164,10.67879263,176.51,176.5,1.41752423]
[1729788158174,10.67879263,176.51,176.48,2.8349]
[1729788158376,7.84419263,176.51,176.49,1.41758978]
[1729788158570,2.8347,176.5,176.49,1.41758978]
[1729788159467,2.8347,176.5,176.48,2.835]
[1729788160074,7.84419263,176.51,176.46,4.58]
[1729788160270,2.8348,176.49,176.47,2.8351]
[1729788161078,2.8348,176.49,176.46,4.58]
[1729788161279,10.67899263,176.49,176.46,7.4152]
[1729788161871,10.67899263,176.49,176.46,2.8352]
[1729788162284,2.835,176.48,176.46,2.8352]
[1729788162582,7.84419263,176.48,176.32,4.25347537]
[1729788162878,7.84419263,176.48,176.41,7.84419263]
[1729788163070,7.84419263,176.46,176.41,7.84419263]
[1729788163274,7.84419263,176.46,176.41,4.6]
[1729788164279,2.8356,176.45,176.43,2.8357]
[1729788164479,2.8356,176.45,176.4,12.44419263]
[1729788164975,2.8356,176.45,176.43,2.8358]
[1729788165484,2.8354,176.46,176.44,2.8356]
[1729788166379,2.8354,176.46,176.45,1.41810313]
[1729788166679,10.67929263,176.48,176.45,2.8354]
[1729788166976,7.84419263,176.49,176.43,7.84419263]
[1729788167179,7.84419263,176.49,176.44,1.41802291]
[1729788167481,2.835,176.48,176.45,1.41802291]
[1729788167681,2.835,176.48,176.43,7.84419263]
[1729788167875,5.6679,176.55,176.44,1.41796873]
[1729788168075,5.6679,176.55,176.43,12.44419263]
[1729788168076,7.84419263,176.49,176.43,12.44419263]
[1729788168388,7.84419263,176.49,176.46,2.8352]
[1729788168577,2.8352,176.47,176.43,4.6]
[1729788168779,2.8352,176.47,176.44,1.41794183]
[1729788168972,7.84419263,176.5,176.45,1.41794183]
[1729788169174,2.835,176.48,176.46,1.41794183]
[1729788169476,2.835,176.48,176.45,2.8353]
[1729788169685,2.835,176.48,176.46,1.41793796]
[1729788169977,2.835,176.48,176.45,2.8353]
[1729788170181,2.835,176.48,176.46,1.41793796]
[1729788170375,2.835,176.48,176.45,2.8353]
[1729788170575,10.67919263,176.48,176.46,1.41794915]
[1729788170777,10.67919263,176.48,176.45,2.8353]
[1729788170976,10.67919263,176.48,176.46,1.4179496]
[1729788171177,10.67919263,176.48,176.45,2.8353]
[1729788173685,4.6,176.54,176.43,12.44419263]
[1729788173988,7.84419263,176.5,176.44,9.26211039]
[1729788174282,7.84419263,176.5,176.48,2.8349]
[1729788174882,10.67889263,176.5,176.48,2.8349]
[1729788175975,10.67889263,176.5,176.47,2.835]
[1729788179690,4.6,176.54,176.29,4.25347537]
[1729788179691,7.84419263,176.48,176.29,4.25347537]
[1729788179888,7.84419263,176.43,176.35,9.26202941]
[1729788180088,7.84419263,176.43,176.36,1.41783678]
[1729788180392,7.84419263,176.43,176.37,1.41783678]
[1729788180685,7.84419263,176.43,176.35,7.84419263]
[1729788180686,7.84419263,176.43,176.38,1.41783678]
[1729788180889,7.84419263,176.43,176.39,1.41783678]
[1729788181086,7.84419263,176.43,176.4,1.41783678]
[1729788181286,7.84419263,176.43,176.36,7.84419263]
[1729788181486,2.8361,176.42,176.37,4.25488484]
[1729788181689,2.8361,176.42,176.38,1.41828484]
[1729788181892,2.8361,176.42,176.39,1.41828484]
[1729788182083,2.8361,176.42,176.37,2.8366]
[1729788182490,2.8361,176.41,176.38,1.41830528]
[1729788182690,2.8361,176.41,176.39,1.41830528]
[1729788182887,2.8361,176.41,176.4,1.41830528]
[1729788183081,7.84419263,176.43,176.4,1.41830528]
[1729788183406,7.84419263,176.41,176.35,12.42419263]
[1729788183686,7.84419263,176.41,176.36,1.41835344]
[1729788183891,10.68029263,176.41,176.38,2.8366]
[1729788184194,10.68029263,176.41,176.39,1.41835344]
[1729788184389,2.8371,176.35,176.31,2.8377]
[1729788184585,7.84419263,176.34,176.32,1.41855783]
[1729788184893,7.84419263,176.34,176.33,1.41855783]
[1729788185393,10.68139263,176.34,176.33,1.41855783]
[1729788185691,7.84419263,176.34,176.29,1.41855783]
[1729788185890,7.84419263,176.34,176.3,1.41855783]
[1729788186089,7.84419263,176.34,176.31,1.41855783]
[1729788186290,7.84419263,176.37,176.32,1.41855783]
[1729788186493,7.84419263,176.37,176.31,12.42419263]
[1729788186494,7.84419263,176.37,176.33,1.41855783]
[1729788186790,7.84419263,176.37,176.34,1.41855783]
[1729788186998,7.84419263,176.37,176.32,1.41855783]
[1729788187182,7.84419263,176.37,176.33,1.41855783]
[1729788187389,7.84419263,176.37,176.33,2.8374]
[1729788187390,10.68089263,176.37,176.33,2.8374]
[1729788187583,7.84419263,176.36,176.34,1.41855783]
[1729788187894,7.84419263,176.36,176.33,2.8374]
[1729788188087,7.84419263,176.36,176.33,4.25595783]
[1729788188283,7.84419263,176.36,176.33,2.8374]
[1729788188894,10.68109263,176.36,176.33,2.8374]
[1729788189094,7.84419263,176.36,176.32,1.41855783]
[1729788189288,7.84419263,176.33,176.31,1.41855783]
[1729788189592,7.84419263,176.33,176.3,1.41855783]
[1729788189991,7.84419263,176.33,176.31,2.8376]
[1729788190598,7.84419263,176.33,176.29,1.41855783]
[1729788190909,7.84419263,176.32,176.27,4.58]
[1729788191086,2.838,176.29,176.28,1.41855783]
[1729788191292,7.84419263,176.3,176.24,3.82005783]
[1729788191701,7.84419263,176.28,176.25,2.8386]
[1729788191897,7.84419263,176.28,176.24,3.82005783]
[1729788192195,7.84419263,176.3,176.24,11.66425046]
[1729788192399,7.84419263,176.3,176.25,7.84419263]
[1729788192993,7.84419263,176.3,176.28,2.8381]
[1729788194295,7.84419263,176.3,176.24,3.82005783]
[1729788194597,2.90734808,176.33,176.22,7.84419263]
[1729788194789,7.84419263,176.29,176.22,7.84419263]
[1729788194995,7.84419263,176.29,176.26,2.8384]
[1729788195591,10.68219263,176.29,176.26,2.8384]
[1729788195987,7.84419263,176.29,176.26,2.8384]
[1729788196189,7.84419263,176.29,176.25,2.8387]
[1729788196692,2.8377,176.32,176.25,7.84419263]
[1729788196893,7.84419263,176.3,176.21,4.58]
[1729788197096,62.496,176.4,176.26,7.84419263]
[1729788197299,7.84419263,176.32,176.26,7.84419263]
[1729788197500,4.58,176.36,176.27,7.84419263]
[1729788197696,7.84419263,176.33,176.27,7.84419263]
[1729788198411,7.84419263,176.33,176.3,2.8377]
[1729788198996,7.84419263,176.34,176.3,2.8377]
[1729788199300,7.84419263,176.31,176.27,2.8383]
[1729788199501,7.84419263,176.29,176.27,2.8383]
[1729788200407,7.84419263,176.29,176.24,2.8387]
[1729788200599,2.8374,176.33,176.23,12.42419263]
[1729788200899,7.84419263,176.29,176.23,12.42419263]
[1729788201102,7.84419263,176.31,176.25,7.84419263]
[1729788201690,7.84419263,176.31,176.28,2.8381]
[1729788202298,2.8377,176.31,176.28,2.8381]
[1729788205101,2.8381,176.29,176.26,2.8385]
[1729788205303,2.8381,176.29,176.23,16.83774438]
[1729788205498,12.25774438,176.32,176.23,16.83774438]
[1729788205799,2.838,176.3,176.27,2.8382]
[1729788205998,12.25774438,176.32,176.23,16.83774438]
[1729788206200,12.25774438,176.34,176.23,16.83774438]
[1729788206396,2.8378,176.31,176.27,2.8382]
[1729788206596,2.8378,176.31,176.23,16.83774438]
[1729788207198,2.8378,176.31,176.28,2.8381]
[1729788209710,12.25774438,176.31,176.24,4.58]
[1729788210103,2.838,176.29,176.26,2.8385]
[1729788217208,12.25774438,176.29,176.24,2.8387]
[1729788217811,2.8385,176.27,176.24,2.8387]
[1729788219704,2.8386,176.26,176.23,2.839]
[1729788220208,2.8386,176.26,176.22,4.58]
[1729788220415,2.8384,176.27,176.24,2.8388]
[1729788221508,2.8384,176.27,176.22,4.58]
[1729788222505,12.25774438,176.29,176.22,4.58]
[1729788223410,12.25774438,176.32,176.22,4.58]
[1729788223809,12.25774438,176.32,176.22,16.83774438]
[1729788224414,2.8379,176.3,176.27,2.8382]
[1729788224920,0.9982,176.4,176.26,7.84542437]
[1729788225215,7.84542437,176.34,176.28,7.84542437]
[1729788226519,7.0566,176.39,176.29,7.84542437]
[1729788226819,10.68242437,176.36,176.32,2.8374]
[1729788227511,2.8371,176.35,176.32,2.8374]
[1729788227707,2.4766,176.39,176.34,2.8372]
[1729788227911,7.84542437,176.37,176.3,12.42542437]
[1729788228312,7.84542437,176.37,176.32,7.84542437]
[1729788228515,7.84542437,176.37,176.33,2.8373]
[1729788228717,7.84542437,176.37,176.32,7.84542437]
[1729788229121,7.84542437,176.37,176.35,2.837]
[1729788229723,2.8362,176.41,176.37,2.8366]
[1729788229921,10.68162437,176.41,176.37,2.8366]
[1729788230120,10.68162437,176.41,176.34,12.42542437]
[1729788230321,2.8363,176.4,176.37,2.8366]
[1729788233915,2.8361,176.42,176.36,7.84542437]
[1729788234121,2.8361,176.42,176.38,2.8365]
[1729788234322,10.68152437,176.42,176.38,2.8365]
[1729788234725,2.8361,176.41,176.38,2.8365]
[1729788235226,0.9967,176.51,176.28,1.41855013]
[1729788235227,5.6671,176.58,176.4,7.84542437]
[1729788235423,5.6671,176.58,176.31,229.71251886]